Workbook

Sheet Reference Range Establishment
A1: NOTICE: This document is an example only. It must be revised to reflect your lab’s specific processes and/or specific protocol requirements.
A2: Approved and current. Effective starting 10-Aug-2023. Last reviewed on 10-Aug-2023. RDP 502 (version 1.0). Reference Range Establishment (ALT)_Example. Page 1 of 1
A3: Reference Interval Analysis
A6: Method being evaluated: | D6: Vitros 250 | I6: Date: | J6: 2023-08-03
B7: Analyte | D7: ALT
A8: Reference Range: | D8: =IFERROR(K23,"") -> 4 | E8: to | F8: =IFERROR(J34,"") -> 36 | H8: Units: | I8: U/L
I10: 130
A12: 5 | B12: 8 | C12: 15 | D12: 30 | E12: 22 | F12: 9 | G12: 12 | H12: 6 | I12: 12 | J12: 6 | K12: 9 | L12: 5
A13: 5 | B13: 6 | C13: 25 | D13: 8 | E13: 36 | F13: 30 | G13: 30 | H13: 6 | I13: 22 | J13: 6 | K13: 12 | L13: 6
A14: 10 | B14: 6 | C14: 30 | D14: 6 | E14: 22 | F14: 8 | G14: 8 | H14: 6 | I14: 33 | J14: 9 | K14: 4 | L14: 9
A15: 8 | B15: 9 | C15: 8 | D15: 6 | E15: 33 | F15: 6 | G15: 6 | H15: 9 | I15: 36 | J15: 9 | K15: 22 | L15: 9
A16: 6 | B16: 9 | C16: 6 | D16: 9 | E16: 36 | F16: 6 | G16: 6 | H16: 12 | I16: 6 | J16: 12 | K16: 21 | L16: 12
A17: 6 | B17: 12 | C17: 6 | D17: 9 | E17: 5 | F17: 9 | G17: 9 | H17: 4 | I17: 9 | J17: 6 | K17: 12 | L17: 6
A18: 9 | B18: 4 | C18: 9 | D18: 12 | E18: 6 | F18: 9 | G18: 9 | H18: 22 | I18: 9 | J18: 9 | K18: 4 | L18: 9
A19: 9 | B19: 22 | C19: 9 | D19: 4 | E19: 9 | F19: 12 | G19: 12 | H19: 21 | I19: 12 | J19: 9 | K19: 22 | L19: 9
A20: 12 | B20: 21 | C20: 12 | D20: 25 | E20: 11 | F20: 4 | G20: 25 | H20: 18 | I20: 12 | J20: 12 | K20: 21 | L20: 12
A21: 4 | B21: 16 | C21: 4 | D21: 9 | E21: 12 | F21: 6 | G21: 27 | H21: 32 | I21: 4 | J21: 95 | K21: 52 | L21: 36
A23: Mean: | C23: =IFERROR(MROUND(AVERAGE(A12:L21),0.01),"---") -> 13.5 | I23: Low | K23: =SMALL(A12:L21,3) -> 4 | L23: =K23-0.01 -> 3.99
A24: SD: | C24: =IFERROR(MROUND(STDEV(A12:L21),0.01),"---") -> 11.9 | I24: High | K24: =SMALL(A12:L21,118) -> 36 | L24: =K24+0.01 -> 36.01
A25: Minimum: | C25: =MIN(A12:L21) -> 4 | I25: Bin1 | J25: =L23 -> 3.99 | K25: =K24-K23 -> 32
A26: Maximum: | C26: =MAX(A12:L21) -> 95 | I26: Bin2 | J26: =MROUND(J25+(0.2*K25),0.01) -> 10.39
A27: Median: | C27: =IFERROR(MEDIAN(A12:L21),"---") -> 9 | I27: Bin3 | J27: =MROUND($J$25+(0.3*$K$25),0.01) -> 13.59
I28: Bin4 | J28: =MROUND($J$25+(0.4*$K$25),0.01) -> 16.79
A29: =I8 -> U/L | C29: Frequency | D29: Percent | I29: Bin5 | J29: =MROUND($J$25+(0.5*$K$25),0.01) -> 19.99
A30: ="≤"&" "&J25 -> ≤ 3.99 | C30: =FREQUENCY(A12:L21,J25:J34) -> 0 | D30: =C30/120 -> 0 | I30: Bin6 | J30: =MROUND($J$25+(0.6*$K$25),0.01) -> 23.19
A31: =(J25+0.01)&" "&"-"&" "&J26 -> 4 - 10.39 | C31: 70 | D31: =C31/120 -> 0.5833333333 | I31: Bin7 | J31: =MROUND($J$25+(0.7*$K$25),0.01) -> 26.39
A32: =(J26+0.01)&" "&"-"&" "&J27 -> 10.4 - 13.59 | C32: 19 | D32: =C32/120 -> 0.1583333333 | I32: Bin8 | J32: =MROUND($J$25+(0.8*$K$25),0.01) -> 29.59
A33: =(J27+0.01)&" "&"-"&" "&J28 -> 13.6 - 16.79 | C33: 2 | D33: =C33/120 -> 0.01666666667 | I33: Bin9 | J33: =MROUND($J$25+(0.9*$K$25),0.01) -> 32.79
A34: =(J28+0.01)&" "&"-"&" "&J29 -> 16.8 - 19.99 | C34: 1 | D34: =C34/120 -> 0.008333333333 | I34: Bin10 | J34: =K24 -> 36
A35: =(J29+0.01)&" "&"-"&" "&J30 -> 20 - 23.19 | C35: 11 | D35: =C35/120 -> 0.09166666667
A36: =(J30+0.01)&" "&"-"&" "&J31 -> 23.2 - 26.39 | C36: 3 | D36: =C36/120 -> 0.025 | H36: CI-L | I36: =SMALL(A12:L21,1) -> 4 | J36: =SMALL(A12:L21,7) -> 4
A37: =(J31+0.01)&" "&"-"&" "&J32 -> 26.4 - 29.59 | C37: 1 | D37: =C37/120 -> 0.008333333333 | H37: CI-U | I37: =SMALL(A12:L21,114) -> 33 | J37: =SMALL(A12:L21,120) -> 95
A38: =(J32+0.01)&" "&"-"&" "&J33 -> 29.6 - 32.79 | C38: 5 | D38: =C38/120 -> 0.04166666667 | H38: CR | I38: =0.5*(J37-I37+J36-I36)/(K24-K23) -> 0.96875
A39: =(J33+0.01)&" "&"-"&" "&J34 -> 32.8 - 36 | C39: 6 | D39: =C39/120 -> 0.05
A40: =">"&" "&J34 -> > 36 | C40: 2 | D40: =C40/120 -> 0.01666666667
C44: Confidence Intervals
B45: Lower | C45: =I36 -> 4 | D45: to | E45: =J36 -> 4
B46: Upper | C46: =I37 -> 33 | D46: to | E46: =J37 -> 95
